Cogmind - Beta 14 @@@ ROGUE MODE // 2024.09.02 @ 14:21:03 Player: star Result: Destroyed by M6-ATO(R) with Subdweller Machine Gun Performance ------------- Evolutions (0) 0 Regions Visited (2) 400 Robots Destroyed (18) 90 Value Destroyed (463) 463 Prototype IDs (11) 220 Alien Tech Used (0) 0 Bonus (-82) -82 TOTAL SCORE: 1091 Bonus ------- Friendly Fire -82 Cogmind --------- Core Integrity 0/250 Matter 291/300 Energy 200/200 System Corruption 0% Temperature Cool (0) Movement Rolling (115) Ox1 Location -10/Subcaves Parts ------- > --- POWER (1) -------- Subdweller Power Source > --- PROPULSION (2) --- Compact Wheel > --- UTILITY (2) ------ Disposable Heat Sink Small Storage Unit > --- WEAPON (2) ------- Subdweller Beam Cannon Subdweller Beam Cannon > --- INVENTORY (8) ---- Cargo Legs Disposable Heat Sink Structural Scanner Particle Cannon Subdweller Beam Cannon Barrage Gun Ripper Peak State ------------ > --- POWER ------------ Subdweller Power Source > --- PROPULSION ------- Compact Wheel > --- UTILITY ---------- Disposable Heat Sink Small Storage Unit > --- WEAPON ----------- Particle Cannon Subdweller Beam Cannon > --- INVENTORY -------- Cargo Legs Disposable Heat Sink Disposable Heat Sink Structural Scanner Particle Cannon Barrage Gun Ripper [Rating: 13] Favorites ----------- Power Ion Engine Engine Ion Engine Propulsion Compact Wheel Wheel Compact Wheel Utility Small Storage Unit Device Disposable Heat Sink Storage Small Storage Unit Weapon Particle Cannon Energy Cannon Particle Cannon Ballistic Gun Light Assault Rifle Build | -11 -10 -10 ------- Run | Yrd Mat Sub Slots Evolved . | . . . Power . | . . . Propulsion . | . . . Utility . | . . . Weapon . | . . . Parts Attached 21 | 6 8 7 Power 3 | 1 1 1 Engine 3 | 1 1 1 Core . | . . . Reactor . | . . . Propulsion 3 | 2 1 . Treads . | . . . Leg . | . . . Wheel 3 | 2 1 . Hover . | . . . Flight . | . . . Utility 4 | 1 1 2 Device 3 | . 1 2 Storage 1 | 1 . . Processor . | . . . Hackware . | . . . Protection . | . . . Artifact . | . . . Weapon 11 | 2 5 4 Energy Gun . | . . . Energy Cannon 8 | . 4 4 Ballistic Gun 3 | 2 1 . Ballistic Cannon . | . . . Launcher . | . . . Special Weapon . | . . . Impact Weapon . | . . . Slashing Weapon . | . . . Piercing Weapon . | . . . Special Melee Weapon . | . . . Unidentified Prototypes . | . . . Parts Lost 3 | . . 3 Power 1 | . . 1 Propulsion 1 | . . 1 Utility . | . . . Weapon 1 | . . 1 Highest Loss Streak 2 | . . 2 To Critical Strikes . | . . . Average Slot Usage (%) 95 | . 97 93 Engine 13 | . 14 12 Wheel 25 | . 28 23 Device 13 | . 12 14 Storage 14 | . 14 14 Energy Cannon 26 | . 24 28 Ballistic Gun 1 | . 3 . Peak Build Rating 13 | 6 11 13 Average Rating 10 | 4 10 11 On Entrance 5 | . 6 11 Naked Turns . | . . . Heaviest Build 27 | 12 19 27 Greatest Support 26 | 26 26 26 Greatest Overweight (x) 1 | . . 1 Average Overweight (x) . | . . . Largest Inventory Capacity 8 | 8 8 8 Average Capacity 7 | 7 8 8 Most Carried 8 | 1 8 8 Average Carried 7 | . 7 7 Final Capacity 8 | 8 8 8 Final Carried 8 | 1 8 8 Class Distribution -------------------- 100% | Mutant Dominant Class ---------------- Mutant | -10/Materials Mutant | -10/Subcaves Resources | -11 -10 -10 ----------- Run | Yrd Mat Sub Matter Collected 401 | 260 50 91 Remotely . | . . . Salvage Created 687 | . 358 329 Parts 33 | . 21 12 Haulers Intercepted 1 | . 1 . Recyclers Shooed . | . . . Parts Field Recycled . | . . . Retrieved Matter . | . . . Parts Self-Destructed 7 | . . 7 Prevented . | . . . Kills | -11 -10 -10 ------- Run | Yrd Mat Sub Combat Hostiles Destroyed 13 | . 7 6 Cannons 11 | . 7 4 Classes Destroyed 8 | . 6 2 Builder 2 | . 2 . Hauler 1 | . 1 . Operator 1 | . 1 . Watcher 1 | . 1 . Swarmer 3 | . 3 . Grunt 4 | . 4 . Artisan 2 | . . 2 Subdweller 6 | . . 6 Best Kill Streak 3 | . 3 2 Combat Bots Only 2 | . 2 2 Max Kills in Single Turn 2 | . 2 1 Gunslinging . | . . . Exploded . | . . . Melee . | . . . Uniques/NPCs Destroyed . | . . . Combat | -11 -10 -10 -------- Run | Yrd Mat Sub Hostile Shots Fired 43 | . 20 23 Missed 9 | . 5 4 Damage Taken 602 | . 168 434 Core 264 | . 55 209 Absorbed by Shields . | . . . Core Remaining (%) 100 | 100 . . Volleys Fired 67 | . 29 38 Largest 2 | . 2 2 Hottest 148 | . 136 148 Shots Fired 125 | . 58 67 Gun . | . . . Cannon 125 | . 58 67 Launcher . | . . . Special . | . . . Kinetic . | . . . Thermal 125 | . 58 67 Explosive . | . . . Electromagnetic . | . . . Robot Hit Streak 12 | . 7 12 Robot Miss Streak 3 | . 3 2 Penetration Max . | . . . Secondary Targets . | . . . Shots Hit Robots 72 | . 36 36 Core Hits 23 | . 12 11 Critical Kills 2 | . . 2 Critical Parts Destroyed . | . . . Critical Strikes 2 | . . 2 Meltdown 2 | . . 2 Melee Attacks . | . . . Impact . | . . . Slashing . | . . . Piercing . | . . . Sneak Attacks . | . . . Combat Hostiles . | . . . Follow-up Attacks . | . . . Damage Inflicted 1569 | . 783 786 Guns . | . . . Cannons 1569 | . 783 786 Explosions . | . . . Melee . | . . . Ramming . | . . . Kinetic . | . . . Thermal 1569 | . 783 786 Explosive . | . . . Electromagnetic . | . . . Impact . | . . . Slashing . | . . . Piercing . | . . . Highest Corruption . | . . . Average Corruption . | . . . Corruption Purged . | . . . Corruption Blocked . | . . . Overload Shots . | . . . Overflow Damage 13 | . 11 2 Projectiles 13 | . 11 2 Explosions . | . . . Melee . | . . . Knockbacks . | . . . Impact . | . . . Kinetic . | . . . Secondary . | . . . Self-Inflicted Damage . | . . . Shots . | . . . Rammed . | . . . Targets Rammed . | . . . Kicked . | . . . Crushed . | . . . Highest Temperature 198 | . 195 198 Average Temperature 93 | . 114 64 Received Heat Transfer 141 | . 81 60 Siege Activations . | . . . Robots Corrupted . | . . . Combat Hostiles . | . . . Parts Fried . | . . . Impact Corruptions . | . . . Robots Melted 2 | . . 2 Combat Hostiles 2 | . . 2 Parts Melted 10 | . 3 7 Heat Transferred 2701 | . 1406 1295 Parts Sabotaged . | . . . Parts Stolen . | . . . Parts Stripped . | . . . Power Chain Reactions . | . . . Alert | -11 -10 -10 ------- Run | Yrd Mat Sub Peak Influence 293 | . 293 . Initial . | . . . Average 104 | . 112 . Maximum Alert Level 1 | . 1 . Low Security (%) 85 | 100 84 . Level 1 14 | . 15 . Level 2 . | . . . Level 3 . | . . . Level 4 . | . . . Level 5 . | . . . High Security . | . . . Max Security . | . . . Squads Dispatched 1 | . 1 . Investigation . | . . . Extermination . | . . . Reinforcement 1 | . 1 . Assault . | . . . Garrison . | . . . Intercept . | . . . Searches Triggered . | . . . Construction Impeded . | . . . Haulers Reinforced . | . . . Active Scanning Responses . | . . . Cargo Convoy Interrupts . | . . . Stealth | -11 -10 -10 --------- Run | Yrd Mat Sub Distress Signals 2 | . 2 . Communications Jammed . | . . . Distress Signals . | . . . Times Spotted 20 | . 13 7 Peak Tracking Total 4 | . 4 2 Tactical Retreats 2 | . 2 . Traps | -11 -10 -10 ------- Run | Yrd Mat Sub Traps Triggered 3 | . 2 1 Indirectly . | . . . Trap Hack Attempts . | . . . Triggered . | . . . Disarmed . | . . . Reprogrammed . | . . . Reused . | . . . Traps Extracted . | . . . Installed . | . . . Triggered . | . . . Machines | -11 -10 -10 ---------- Run | Yrd Mat Sub Machines Disabled 2 | . . 2 Max in Single Turn 1 | . . 1 Machines Repaired . | . . . Machines Dismantled . | . . . Machines Sabotaged . | . . . Overloaded Fab Kills . | . . . Hacking | -11 -10 -10 --------- Run | Yrd Mat Sub Machines Accessed 6 | . 2 4 Terminals 2 | . 2 . Fabricators . | . . . Repair Stations . | . . . Recycling Units . | . . . Scanalyzers . | . . . Garrison Access . | . . . Total Hacks 22 | . 6 16 Successful 20 | . 4 16 Failed 2 | . 2 . Catastrophic . | . . . Database Lockouts . | . . . Manual 5 | . 5 . Terminals 6 | . 6 . Fabricators . | . . . Repair Stations . | . . . Recycling Units . | . . . Scanalyzers . | . . . Garrison Access . | . . . Terminal Hacks 18 | . 2 16 Record 13 | . . 13 Robot Analysis 1 | . 1 . Open Door 1 | . . 1 Zone Layout 1 | . 1 . Derelict Proto ID Bank 1 | . . 1 Release Object 1 | . . 1 Fabricator Hacks . | . . . Repair Station Hacks . | . . . Recycling Unit Hacks . | . . . Scanalyzer . | . . . Garrison Access Hacks . | . . . Unauthorized Hacks 2 | . 2 . Terminals 2 | . 2 . Botnet 2 | . 2 . Fabricators . | . . . Repair Stations . | . . . Recycling Units . | . . . Scanalyzers . | . . . Garrison Access . | . . . Data Cores Recovered 1 | . 1 . Used . | . . . Hacking Detections 2 | . 2 . Full Trace Events . | . . . Feedback Events . | . . . Feedback Blocked . | . . . Robot Schematics Acquired . | . . . Robots Built . | . . . Authchips . | . . . Time . | . . . Total Robot Build Rating . | . . . Part Schematics Acquired . | . . . Parts Built . | . . . Authchips . | . . . Time . | . . . Total Part Build Rating . | . . . Parts Repaired . | . . . Time . | . . . Parts Recycled . | . . . Recycled Matter . | . . . Retrieved Matter . | . . . Retrieved Components . | . . . Parts Scanalyzed . | . . . Part Schematics Acquired . | . . . Parts Damaged . | . . . Bothacking | -11 -10 -10 ------------ Run | Yrd Mat Sub Used RIF Installer . | . . . Robots Hacked . | . . . Non-combat . | . . . Combat . | . . . Robot Hacks Applied . | . . . Relay Couplers Released . | . . . Fabnet Peak Effective % . | . . . Robots Rewired . | . . . Allies Hacked . | . . . Hacks Repelled . | . . . Allies | -11 -10 -10 -------- Run | Yrd Mat Sub Total Allies . | . . . Largest Group . | . . . Highest-Rated Group . | . . . Highest-Rated Ally . | . . . Total Orders . | . . . Ally Attacks . | . . . Total Damage . | . . . Kills . | . . . Allies Corrupted . | . . . Allies Melted . | . . . Intel | -11 -10 -10 ------- Run | Yrd Mat Sub Robot Analysis Total 1 | . 1 . Derelict Logs Recovered 1 | . . 1 Drone Launches . | . . . Drone Recoveries . | . . . Exploration | -11 -10 -10 ------------- Run | Yrd Mat Sub Turns Passed 1261 | 42 563 656 Spaces Moved 923 | 36 343 544 Core 2 | 2 . . Treads . | . . . Legs . | . . . Wheels 921 | 34 343 544 Hover . | . . . Flight . | . . . Fastest Speed 50 | 50 90 90 Average Speed 93 | 90 90 96 Slowest Speed 115 | 100 100 115 Overloaded Moves . | . . . Propulsion Burnouts . | . . . Robots Hopped . | . . . Cave-ins Triggered . | . . . Exploration Rate (%) 33 | 3 57 40 Regions Visited 2 Branch Regions 1 Pre-discovered Areas . | . . . Known Exits Taken . | . . . Unknown Exits Taken 2 | 1 1 . Scrap Searched . | . . . Spaces Dug . | . . . Terrain Destroyed 2 | . . 2 Melee . | . . . Projectile 2 | . . 2 AOE . | . . . Terrain Rammed . | . . . Walls Destroyed . | . . . Machines Disabled . | . . . Actions | -11 -10 -10 --------- Run | Yrd Mat Sub Total 1187 | 42 535 610 Wait 151 | . 147 4 Move 921 | 35 342 544 Hop . | . . . Pick Up 15 | 1 8 6 Fast Attach 13 | 6 6 1 Attach 1 | . . 1 Detach . | . . . Swap 7 | . 2 5 Drop 11 | . 1 10 Fire 67 | . 29 38 Melee . | . . . Ram . | . . . Kick . | . . . Crush . | . . . Escape Stasis . | . . . Rewire . | . . . Trap . | . . . Miscellaneous 1 | . . 1 Route ------- -11/Scrapyard -10/Materials (discovered 3 exits: [*Mat] / [*Min] / *Sub) -10/Subcaves History --------- Turn | Location | Event 20 | -11/Scrapyard | Discovered new exit (range 16) 43 | -11/Scrapyard | Entered Materials 187 | -10/Materials | Discovered new exit (range 14) 314 | -10/Materials | Build established: Mutant 452 | -10/Materials | Discovered new exit (range 16) 601 | -10/Materials | Discovered new exit (range 3) 606 | -10/Materials | Entered Subcaves 666 | -10/Subcaves | A swath of the cavern ceiling suddenly collapsed 666 | -10/Subcaves | Shifting Twisted Machinery released Sub. Beam Cannon 688 | -10/Subcaves | Shifting Twisted Machinery released Ripper 727 | -10/Subcaves | Visited Clippyterm 730 | -10/Subcaves | Learned 40 Factory zone layouts 758 | -10/Subcaves | Learned Materials stockpile data 809 | -10/Subcaves | Visited 4L-MR0's lab 820 | -10/Subcaves | Found Cargo Legs 903 | -10/Subcaves | Core integrity fell below 50% 1007 | -10/Subcaves | Released subatomizers from SUBCON Basin 1092 | -10/Subcaves | Shifting Twisted Machinery released Sub. Power Source 1116 | -10/Subcaves | Shifting Twisted Machinery released Barrage Gun 1154 | -10/Subcaves | Core integrity fell below 20% 1183 | -10/Subcaves | Shifting Twisted Machinery released Sub. Beam Cannon 1187 | -10/Subcaves | Shifting Twisted Machinery released Sub. Beam Cannon 1262 | -10/Subcaves | Destroyed by M6-ATO(R) with Subdweller Machine Gun Last Messages --------------- 01151_ 28-JOO(R) suffers critical hit (Meltdown). 01151_ Sub. Monowheel melted. 01166_ 6O-FC6(R) affixes Scrap Shield Fragment to Scrap Shield. 01166_ Sub. Laser melted. 01166_ Sub. Monowheel melted. 01166_ Sub. Optics melted. 01166_ 6O-FC6(R) destroyed. 01171_ Acquired 20 matter. Sub. Beam Cannon falls loose from the Twisted Machinery. 01190_ Dropped Sub. Beam Cannon. 01197_ Acquired 10 matter. 01201_ Dropped Particle Cannon. 01203_ Acquired 4 matter. 01207_ Dropped Disposable Heat Sink. 01208_ Acquired Sub. Beam Cannon. 01212_ Dropped Sub. Beam Cannon. 01212_ Acquired Particle Cannon. 01214_ Dropped Particle Cannon. 01214_ Acquired Sub. Beam Cannon. 01226_ Acquired 7 matter. Map ----- +----------------------------------------------------+ | ??????????????????##????? ?????????????## ##?????? | | ??????????????????? ##??? ????????????## "#?????? | | ??????????????????? #?? ??###??????## """#?????? | | ???????????????????? ## ?## ######## " "##?????? | | ????????????????????? % ?#% # # # """"#??????? | | ?????????????????????? ?# % "" """ "#??????? | | ??????????????????????? #?## "" "" "" #??????? | | ???????????????????????# #### % # #"" "" #??????? | | ???????????????????????# ## ##"" #??????? | | ???????????????????????# % """ #??????? | | ???????????????????????# """""""""##??????? | | ?????????????????????### ###""#"""####???????? | | ????????????????????## ####?#""### #??????????? | | ????????????????????# ##????# ###?####???????? | | ????????????????????### #???? " ##" ???????? | | ?????????????????????## #???? """""""????????? | | ?????????????????????# ##?????### "" ?????????? | | ?????????????????????## #???????# #??????????? | | ?????????????????????# ##???????# ##?????????? | | ?????????????????????## *########## "######????? | | ??????????????????????#%% ## # # %## #????? | | ??????????????????????#& "" ! ]#????? | | ??????????????????????## """" "" ##????? | | ??????????????????????## ###""""" """""#?????? | | ??????????????#???????# ##?#### ### ""#?????? | | ??????????????? ??????# @##?????## ## "##?????? | | ???????????????# ?????# ##??????#" ###""??????? | | ???????????????# #??### ##????#""" # "##?????? | | ??????????????## ### #### """"" ??????? | | ??????????????# "" """ #??????? | | ?????????????# "" " # ???????? | | ????????????# "" ## # ####???????? | | ?????????????""" ##R# # ### # "#?????????? | | ?????????????"" """ ##??#"" #?""??????????? | | ?????????????"" #"## ###????#"" #?????????????? | | ??????????????"" ?### ##???????#"##?????????????? | | ?????????????? "????# #?????????????????????????? | | ????????????????????####?????????????????????????? | | ?????????????????????????????????????????????????? | | ?????????????????????????????????????????????????? | | ?????????????????????????????????????????????????? | | ?????????????????????????????????????????????????? | | ?????????????????????????????????????????????????? | | ?????????????????????????????????????????????????? | | ?????????????????????????????????????????????????? | | ?????????????????????????????????????????????????? | | ?????????????????????????????????????????????????? | | ?????????????????????????????????????????????????? | | ?????????????????????????????????????????????????? | | ?????????????????????????????????????????????????? | +----------------------------------------------------+ Best States ------------- Heat Dissipation 25 Coolant Potential 50 Energy Generation 15 Energy Capacity 250 Matter Stores 300 Matter Capacity 300 Sight Range 16 Terrain Scan Density 10 Evasion (%) 42 Item Schematics ----------------- None Robot Schematics ------------------ None Fabricated ------------ Nothing Alien Tech Used ----------------- None Achievements -------------- None Challenges ------------ None Game ------ Seed FirePhasingSource Manual? 0 Play Time 00:16:31 Cumulative 67.5 hours Start 2024.09.02 @ 00:48:57 End 2024.09.02 @ 14:21:03 Sessions 1 Manual Loads 0 Difficulty Rogue Special Mode None Game No. 122 Rogue 122 Adventurer 0 Explorer 0 Win Type - Total 0 Types 0/0/0/0/0/0/0/0/0 Lore% 24 Gallery% 45 Achievement% 37 Wizard Run 0 Options --------- Layout 0 ASCII 0 Keyboard 0 Movement Numpad Keybinds 0 Fullscreen 2 Font 18/SmallcapsGlow Map View 76x50 Zoom Use 8% Tactical HUD 1 Map Filters NONE Filters NONE Steam 1 RUN: 7f70215e-4d8e-49b7-a61d-57e8f85481b9